[Event "Romanian Superliga 2024"]
[Site "Mamaia"]
[Date "2024.09.29"]
[Round "2.22"]
[White "Nanu, Costica-Ciprian"]
[Black "Filip, Andrei"]
[Result "1-0"]
[ECO "B07"]
[WhiteElo "2525"]
[BlackElo "2278"]
[Annotator "TA"]
[PlyCount "161"]
[EventDate "2024.09.26"]
[EventType "team-tourn"]
[EventCountry "ROU"]
[SourceTitle "playchess.com"]
[Source "ChessBase"]
[SourceQuality "1"]
[TimeControl "40/5400+30:1800+30"]

{[%evp 37,161,52,108,101,82,90,90,100,131,121,135,109,106,114,136,110,142,132,153,131,144,141,139,105,122,110,103,104,105,106,108,102,118,91,86,89,82,24,19,20,18,18,27,27,27,28,50,29,85,4,14,18,85,85,85,85,85,85,85,85,85,85,95,85,85,85,91,85,85,85,91,85,99,85,99,85,99,85,131,85,147,85,147,85,126,0,144,85,156,156,188,188,188,188,350,350,1000,622,1302,1143,2410,2129,3839,740,5676,6211,11829,11829,29958,29962,29968,29968,29970,29971,29971,29972,29974,29975,29976,29977,29977,29978,29978,29979,29978,29979]} 1. d4 {[%emt 0:00:20]} Nf6 {[%emt 0:00:10]} 2. Nf3 {[%emt 0:00:07]} g6 {[%emt 0:00:13]} 3. Nbd2 {[%emt 0:00:19]} Bg7 {[%emt 0:05:17]} 4. e4 {[%emt 0:00:32]} d6 {[%emt 0:00:56]} 5. Bd3 {[%emt 0:00:06]} O-O {[%emt 0:00:51]} 6. O-O {[%emt 0:00:06]} Nc6 {[%emt 0:06:22]} 7. d5 {[%emt 0:02:39] B07: Pirc Defence: Miscellaneous Systems.} Nb4 {[%emt 0:02:34]} 8. Re1 $146 {[%emt 0:03:22]} ({Predecessor:} 8. Be2 c6 9. c4 cxd5 10. exd5 Bf5 11. Nd4 Bd7 12. a3 Na6 13. N2f3 Nc5 14. b4 Nce4 {1-0 Karthikeyan,M (2624)-Andriasian,Z (2558) Abu Dhabi Masters Online blitz 2024 (11)}) 8... Nxd3 {[%emt 0:03:52]} 9. cxd3 {[%emt 0:00:02]} e6 {[%emt 0:05:47]} 10. dxe6 {[%emt 0:00:37]} Bxe6 {[%emt 0:00:55]} 11. d4 {[%emt 0:00:59]} c5 {[%emt 0:11:43]} 12. b3 {[%emt 0:03:01]} cxd4 {[%emt 0:04:32]} 13. Bb2 {[%emt 0:00:51]} Ng4 {[%emt 0:09:51]} 14. Nf1 {[%emt 0:09:36]} Re8 {[%emt 0:04:24]} 15. h3 {[%emt 0:03:02]} Ne5 {[%emt 0:00:31]} 16. Nxd4 {[%emt 0:00:50]} Bd7 {[%emt 0:04:17]} 17. Qd2 {[%emt 0:03:48]} Qh4 {[%emt 0:14:41]} 18. Rad1 {[%emt 0:00:50]} Rad8 {[%emt 0:02:05]} 19. f3 {[%emt 0:12:03]} (19. f4 Bh6 $11) 19... Bh6 {[%emt 0:05:51]} ({Better is} 19... b6 $14) 20. Qf2 $16 {[%emt 0:01:01]} Qxf2+ {[%emt 0:00:19]} 21. Kxf2 {[%emt 0:00:06]} Rc8 {[%emt 0:00:59]} 22. Ne3 {[%emt 0:00:43]} Bg7 {[%emt 0:05:10]} 23. Re2 {[%emt 0:02:34]} f6 {[%emt 0:04:51]} 24. Ba3 {[%emt 0:03:56]} Bf8 {[%emt 0:01:06]} 25. Nd5 {[%emt 0:02:25]} Kg7 {[%emt 0:01:09]} 26. Bb2 {[%emt 0:00:08]} Be7 {[%emt 0:00:27]} 27. f4 {[%emt 0:01:14]} Nf7 {[%emt 0:01:24]} 28. g4 {[%emt 0:00:25]} Kf8 {[%emt 0:01:39]} 29. Nf3 {[%emt 0:01:45]} Bb5 {[%emt 0:00:58]} 30. Re3 {[%emt 0:03:19]} Rc2+ {[%emt 0:00:17]} 31. Rd2 {[%emt 0:00:10]} Rxd2+ {[%emt 0:00:53]} 32. Nxd2 {[%emt 0:00:04]} Rc8 {[%emt 0:00:15]} 33. Rc3 {[%emt 0:01:28]} ({But not} 33. Bxf6 $6 Bxf6 34. Nxf6 Kg7 $11) (33. Nxf6 $2 {perishes.} Rc2 34. Nxh7+ Kg8 35. Nf6+ Bxf6 36. Bxf6 Rxd2+ 37. Kg3 d5 (37... Rxa2 $2 38. f5 $19) 38. exd5 Rxd5 $19 (38... Rxa2 39. Re7 $17)) 33... Rxc3 {[%emt 0:00:11]} 34. Bxc3 {[%emt 0:00:11]} f5 {[%emt 0:00:44]} 35. Nxe7 {[%emt 0:01:28]} Kxe7 {[%emt 0:00:05]} 36. exf5 {[%emt 0:00:09]} (36. gxf5 gxf5 37. exf5 Bd3 $14) 36... gxf5 {[%emt 0:00:05]} 37. gxf5 {[%emt 0:00:07]} (37. g5 $16) 37... Bd3 {[%emt 0:01:46]} 38. f6+ {[%emt 0:00:22]} Ke6 {[%emt 0:00:37]} 39. Nf3 {[%emt 0:00:52]} Bb1 {[%emt 0:00:59]} 40. a3 {[%emt 0:00:00]} Kf5 {[%emt 0:00:00]} 41. Ke3 {[%emt 0:01:26]} a6 {[%emt 0:04:16]} 42. b4 {[%emt 0:04:40]} Ke6 {[%emt 0:03:14]} (42... Kg6 $11) 43. h4 {[%emt 0:00:57]} (43. Ng5+ $16 Nxg5 44. fxg5) 43... Bg6 $11 {[%emt 0:02:34]} 44. Ng5+ {[%emt 0:00:56]} Nxg5 {[%emt 0:00:48]} (44... Kf5 $11 {keeps the balance.}) 45. fxg5 $16 {[%emt 0:00:37]} Bh5 {[%emt 0:02:15]} 46. Kf4 {[%emt 0:01:39]} Bd1 {[%emt 0:01:07]} 47. Bd4 {[%emt 0:00:08]} Kf7 {[%emt 0:01:30]} 48. Bb6 {[%emt 0:00:17]} Ke6 {[%emt 0:00:53]} 49. Bd8 {[%emt 0:00:42]} Kf7 {[%emt 0:01:14]} 50. Be7 {[%emt 0:00:20]} Ke6 {[%emt 0:00:46]} 51. Bf8 {[%emt 0:01:14]} Bh5 {[%emt 0:00:43]} 52. Ke4 {[%emt 0:00:11]} Bg6+ {[%emt 0:00:58]} 53. Kd4 {[%emt 0:00:07]} Bh5 {[%emt 0:00:34]} 54. Be7 {[%emt 0:01:08]} Bf3 {[%emt 0:01:35]} 55. Bd8 {[%emt 0:00:20]} Bh5 {[%emt 0:00:15]} 56. Bc7 {[%emt 0:00:07]} Bf3 {[%emt 0:00:40]} 57. Kc3 {[%emt 0:00:58]} Bd1 {[%emt 0:01:08]} (57... b5 $142) 58. Bb6 {[%emt 0:00:22]} (58. b5 $142 $1) 58... Kf7 {[%emt 0:00:32]} (58... Bh5 $142) 59. Be3 {[%emt 0:00:14]} (59. b5 $142 $1) 59... Ke6 {[%emt 0:00:30]} (59... b5 $142 60. Kd2 Bh5) 60. Bf4 {[%emt 0:00:09]} (60. b5 $142 $1) 60... Bf3 {[%emt 0:03:26]} 61. Be3 {[%emt 0:02:10]} Bd1 $1 {[%emt 0:00:49] [#]} 62. Bd4 {[%emt 0:00:15]} ({White should try} 62. b5 $1) 62... Kf7 {[%emt 0:01:07] [#]} (62... b5 $142 63. Be3 Bh5) 63. b5 $1 $16 {[%emt 0:02:05]} axb5 {[%emt 0:02:46]} 64. Kb4 {[%emt 0:00:05]} Be2 {[%emt 0:00:24]} 65. Ka5 {[%emt 0:00:05]} Kg6 $2 {[%emt 0:03:42]} (65... Ke6 66. Kb6 Kf7 67. Kxb7 Bf3+ 68. Kb6 Be2) 66. Kb6 $18 {[%emt 0:00:46]} Kf7 $2 {[%emt 0:04:10]} (66... Bc4 67. Kxb7 Kh5) 67. Kxb7 $18 {[%emt 0:00:11]} Ke6 {[%emt 0:00:25]} 68. Kc6 {[%emt 0:00:18]} Bd3 {[%emt 0:01:09]} 69. h5 {[%emt 0:00:27]} Kf7 {[%emt 0:00:39]} 70. Kxd6 {[%emt 0:00:29]} (70. Kd5 $142 Bc4+ 71. Kxd6) 70... Bc2 {[%emt 0:00:33]} 71. Kc5 {[%emt 0:00:46]} Bd3 {[%emt 0:00:33]} 72. Be3 {[%emt 0:00:44]} Ke6 {[%emt 0:00:43]} 73. g6 {[%emt 0:00:44]} Kxf6 {[%emt 0:01:09]} 74. Bd4+ {[%emt 0:00:12]} Ke6 {[%emt 0:00:26]} 75. gxh7 {[%emt 0:00:43]} Bxh7 {[%emt 0:00:07]} 76. Kxb5 {[%emt 0:00:03]} Kd7 {[%emt 0:01:17]} 77. Kb6 {[%emt 0:00:12]} Bc2 {[%emt 0:00:26]} 78. h6 {[%emt 0:00:06]} Kc8 {[%emt 0:00:19]} 79. Be5 {[%emt 0:00:06]} Kd7 {[%emt 0:00:52]} 80. a4 {[%emt 0:00:06]} Ke6 {[%emt 0:00:31]} 81. Bc3 {[%emt 0:01:25]} 1-0

[Event "Romanian Superliga 2024"]
[Site "Mamaia"]
[Date "2024.09.29"]
[Round "2.23"]
[White "Itkis, Boris"]
[Black "Ilinca, Felix-Antonio"]
[Result "0-1"]
[ECO "A39"]
[WhiteElo "2279"]
[BlackElo "2417"]
[Annotator "RC"]
[PlyCount "124"]
[EventDate "2024.09.26"]
[EventType "team-tourn"]
[EventCountry "ROU"]
[SourceTitle "playchess.com"]
[Source "ChessBase"]
[SourceQuality "1"]
[TimeControl "40/5400+30:1800+30"]

1. Nf3 {[%emt 0:00:09]} c5 {[%emt 0:00:39]} 2. c4 {[%emt 0:00:17]} Nc6 {[%emt 0:00:20]} 3. Nc3 {[%emt 0:00:25]} Nf6 {[%emt 0:00:26]} 4. g3 {[%emt 0:01:38]} g6 {[%emt 0:00:46]} 5. Bg2 {[%emt 0:00:09]} Bg7 {[%emt 0:00:24]} 6. O-O {[%emt 0:00:12]} O-O {[%emt 0:00:23]} 7. d4 {[%emt 0:00:25]} cxd4 {[%emt 0:00:26]} 8. Nxd4 {[%emt 0:00:07]} Qa5 {[%emt 0:00:28]} 9. e3 {[%emt 0:00:25]} d6 {[%emt 0:03:06]} 10. Qe2 {[%emt 0:07:54]} Bg4 {[%emt 0:03:23]} 11. f3 {[%emt 0:00:08]} Bd7 {[%emt 0:03:09]} 12. Bd2 {[%emt 0:00:18]} Qb6 {[%emt 0:04:13]} 13. Nb3 {[%emt 0:00:39]} Ne5 {[%emt 0:04:43]} 14. Nd4 {[%emt 0:09:06]} Qxb2 {[%emt 0:03:13]} 15. Rfb1 {[%emt 0:03:57]} Qa3 {[%emt 0:02:23]} 16. f4 {[%emt 0:03:27]} Nc6 {[%emt 0:04:20]} 17. Rxb7 {[%emt 0:31:17]} Qa6 {[%emt 0:08:43]} 18. Rab1 {[%emt 0:07:04]} Nxd4 {[%emt 0:09:36]} 19. exd4 {[%emt 0:01:37]} Bf5 {[%emt 0:02:22]} 20. R1b2 {[%emt 0:07:53]} e6 {[%emt 0:04:01]} 21. h3 {[%emt 0:01:51]} d5 {[%emt 0:04:17]} 22. g4 {[%emt 0:03:25]} Be4 {[%emt 0:01:03]} 23. Bxe4 {[%emt 0:06:15]} Nxe4 {[%emt 0:01:43]} 24. Nxe4 {[%emt 0:00:06]} dxe4 {[%emt 0:09:20]} 25. Be3 {[%emt 0:01:06]} Rfd8 {[%emt 0:00:36]} 26. c5 {[%emt 0:00:52]} Qc6 {[%emt 0:02:50]} 27. Qb5 {[%emt 0:02:15]} Qxb5 {[%emt 0:02:35]} 28. R7xb5 {[%emt 0:00:08]} Bxd4 {[%emt 0:05:11]} 29. Bxd4 {[%emt 0:00:05]} Rxd4 {[%emt 0:00:04]} 30. Rc2 {[%emt 0:00:49]} e3 {[%emt 0:02:50]} 31. c6 {[%emt 0:03:15]} Rd1+ {[%emt 0:03:18]} 32. Kg2 {[%emt 0:00:02]} Rd2+ {[%emt 0:00:15]} 33. Rxd2 {[%emt 0:00:00]} exd2 {[%emt 0:00:00]} 34. Rb1 {[%emt 0:00:00]} Rc8 {[%emt 0:00:00]} 35. Rd1 {[%emt 0:00:00]} Rxc6 {[%emt 0:00:00]} 36. Rxd2 {[%emt 0:00:00]} Rc3 {[%emt 0:02:35]} 37. g5 {[%emt 0:00:20]} Ra3 {[%emt 0:01:48]} 38. h4 {[%emt 0:00:17]} Kg7 {[%emt 0:00:53]} 39. Rc2 {[%emt 0:00:00]} Re3 {[%emt 0:00:00]} 40. Rd2 {[%emt 0:00:00]} e5 {[%emt 0:00:00]} 41. fxe5 {[%emt 0:04:59]} Rxe5 {[%emt 0:06:26]} 42. Rd7 {[%emt 0:00:53]} Re2+ {[%emt 0:00:10]} 43. Kg3 {[%emt 0:00:04]} Rxa2 {[%emt 0:00:13]} 44. Rb7 {[%emt 0:00:10]} a5 {[%emt 0:00:27]} 45. Ra7 {[%emt 0:00:10]} a4 {[%emt 0:00:07]} 46. Kh3 {[%emt 0:00:35]} a3 {[%emt 0:00:07]} 47. Kg3 {[%emt 0:00:09]} Ra1 {[%emt 0:00:08]} 48. Kg2 {[%emt 0:00:06]} a2 {[%emt 0:00:05]} 49. Kh2 {[%emt 0:00:18]} h6 {[%emt 0:00:18]} 50. Ra8 {[%emt 0:03:21]} Kh7 {[%emt 0:01:35]} 51. Ra7 {[%emt 0:00:53]} hxg5 {[%emt 0:00:09]} 52. hxg5 {[%emt 0:00:05]} Kg8 {[%emt 0:00:29]} 53. Ra8+ {[%emt 0:03:06]} Kg7 {[%emt 0:00:07]} 54. Ra6 {[%emt 0:08:32]} Kf8 {[%emt 0:00:15]} 55. Ra7 {[%emt 0:00:39]} Ke8 {[%emt 0:00:05]} 56. Ra8+ {[%emt 0:04:26]} Kd7 {[%emt 0:00:40]} 57. Ra6 {[%emt 0:09:06]} Ke7 {[%emt 0:01:44]} 58. Ra5 {[%emt 0:00:06]} Ke6 {[%emt 0:00:28]} 59. Ra7 {[%emt 0:00:02]} Rf1 {[%emt 0:02:08]} 60. Rxa2 {[%emt 0:00:18]} Kf5 {[%emt 0:00:10]} 61. Rg2 {[%emt 0:01:55]} Kf4 {[%emt 0:00:39]} 62. Rg3 {[%emt 0:01:33]} Rh1+ {[%emt 0:00:11]} 0-1

[Event "Romanian Superliga 2024"]
[Site "Mamaia"]
[Date "2024.09.29"]
[Round "2.24"]
[White "Magold, Filip"]
[Black "Negrean, Andrei"]
[Result "0-1"]
[ECO "B30"]
[WhiteElo "2406"]
[BlackElo "2267"]
[Annotator "RC"]
[PlyCount "76"]
[EventDate "2024.09.26"]
[EventType "team-tourn"]
[EventCountry "ROU"]
[SourceTitle "playchess.com"]
[Source "ChessBase"]
[SourceQuality "1"]
[TimeControl "40/5400+30:1800+30"]

1. e4 {[%emt 0:00:24]} c5 {[%emt 0:00:13]} 2. Nf3 {[%emt 0:00:06]} Nc6 {[%emt 0:00:19]} 3. Nc3 {[%emt 0:00:44]} e5 {[%emt 0:01:45]} 4. Bc4 {[%emt 0:00:21]} d6 {[%emt 0:02:27]} 5. d3 {[%emt 0:01:15]} Be7 {[%emt 0:00:46]} 6. h3 {[%emt 0:01:42]} Nf6 {[%emt 0:05:38]} 7. Bg5 {[%emt 0:00:43]} O-O {[%emt 0:02:44]} 8. O-O {[%emt 0:02:48]} Be6 {[%emt 0:02:11]} 9. Bxf6 {[%emt 0:00:45]} Bxf6 {[%emt 0:00:18]} 10. Nd5 {[%emt 0:00:06]} g6 {[%emt 0:03:16]} 11. c3 {[%emt 0:02:37]} Bg7 {[%emt 0:01:46]} 12. a3 {[%emt 0:00:24]} Ne7 {[%emt 0:05:19]} 13. Ne3 {[%emt 0:06:29]} d5 {[%emt 0:06:47]} 14. Ba2 {[%emt 0:03:33]} Qd7 {[%emt 0:09:58]} 15. Ng5 {[%emt 0:04:03]} a5 {[%emt 0:43:34]} 16. a4 {[%emt 0:00:30]} Rad8 {[%emt 0:00:30]} 17. Qb3 {[%emt 0:00:30]} h5 {[%emt 0:00:30]} 18. Qb6 {[%emt 0:00:30]} Qd6 {[%emt 0:00:30]} 19. Qxd6 {[%emt 0:00:30]} Rxd6 {[%emt 0:00:30]} 20. exd5 {[%emt 0:00:30]} Bxd5 {[%emt 0:00:30]} 21. Ne4 {[%emt 0:00:30]} Rdd8 {[%emt 0:00:30]} 22. Nxd5 {[%emt 0:00:30]} Nxd5 {[%emt 0:00:30]} 23. Nxc5 {[%emt 0:00:30]} b6 {[%emt 0:00:30]} 24. Ne4 {[%emt 0:00:30]} Nf4 {[%emt 0:00:30]} 25. Rfd1 {[%emt 0:00:30]} Nxd3 {[%emt 0:00:30]} 26. Rab1 {[%emt 0:00:30]} Nc5 {[%emt 0:00:30]} 27. Nd6 {[%emt 0:00:30]} Bf6 {[%emt 0:00:30]} 28. b3 {[%emt 0:00:30]} Be7 {[%emt 0:00:30]} 29. Nb5 {[%emt 0:00:30]} Kg7 {[%emt 0:00:30]} 30. Kf1 {[%emt 0:00:30]} e4 {[%emt 0:00:30]} 31. Rxd8 {[%emt 0:00:30]} Rxd8 {[%emt 0:00:30]} 32. Ke2 {[%emt 0:00:30]} Nd3 {[%emt 0:00:30]} 33. b4 {[%emt 0:00:30]} axb4 {[%emt 0:00:30]} 34. cxb4 {[%emt 0:00:30]} Bxb4 {[%emt 0:00:30]} 35. g3 {[%emt 0:00:30]} Bc5 {[%emt 0:00:30]} 36. f3 {[%emt 0:00:30]} exf3+ {[%emt 0:00:30]} 37. Kxf3 {[%emt 0:00:30]} Re8 {[%emt 0:00:30]} 38. Bd5 {[%emt 0:00:30]} Ne1+ {[%emt 0:00:30]} 0-1